[Event "4NCL 2021-22"]
[Site "England"]
[Date "2022.04.30"]
[Round "7.66"]
[White "Rocco, Federico"]
[Black "Pein, Malcolm"]
[Result "1/2-1/2"]
[ECO "B09"]
[WhiteElo "2221"]
[BlackElo "2308"]
[Annotator "TA"]
[PlyCount "82"]
[EventDate "2021.11.27"]
[EventType "team-tourn"]
[EventCountry "ENG"]
[SourceTitle "playchess.com"]
[Source "ChessBase"]
[SourceQuality "1"]
[TimeControl "40/6000+30:3000+30"]

{[%evp 22,82,76,42,59,16,33,25,12,20,35,37,26,14,50,0,0,0,0,0,37,-25,0,0,0,0,0,0,174,117,106,118,111,112,193,129,175,169,192,154,159,0,566,0,0,0,0,0,0,0,0,0,0,0,0,0,0,0,0,0,0,0,0]} 1. e4 {[%emt 0:03:48]} d6 {[%emt 0:00:12]} 2. d4 {[%emt 0:00:16]} Nf6 {[%emt 0:00:15]} 3. Nc3 {[%emt 0:00:13]} g6 {[%emt 0:00:13]} 4. f4 {[%emt 0:00:04]} Bg7 {[%emt 0:00:07]} 5. Nf3 {[%emt 0:00:07]} O-O {[%emt 0:00:26]} 6. Bd3 {[%emt 0:00:18]} Na6 {[%emt 0:00:29]} 7. O-O {[%emt 0:00:13]} c5 {[%emt 0:00:04]} 8. d5 {[%emt 0:00:05]} Rb8 {[%emt 0:01:02]} 9. a4 {[%emt 0:02:38]} Bg4 {[%emt 0:02:00]} 10. h3 {[%emt 0:01:13]} Bxf3 {[%emt 0:00:07]} 11. Rxf3 {[%emt 0:00:22]} Nc7 {[%emt 0:02:09]} 12. Qe2 {[%emt 0:02:13] [#]} Nd7 $146 {[%emt 0:09:55] B09: Pirc Defence: Austrian Attack.} ({Predecessor:} 12... b6 13. Bc4 Nd7 14. Bd2 Qc8 15. Raf1 a6 16. e5 dxe5 17. f5 e4 18. Nxe4 Ne5 19. fxg6 hxg6 20. d6 exd6 {1-0 (38) Farkas,R (2297)-Vegh,E (2274) Budapest 2016}) 13. Nb5 {[%emt 0:04:07]} a6 {[%emt 0:05:01]} 14. Na3 {[%emt 0:00:25]} e6 {[%emt 0:10:02] White has an edge.} 15. dxe6 {[%emt 0:14:24]} fxe6 {[%emt 0:01:13]} 16. c3 {[%emt 0:01:49]} d5 {[%emt 0:04:08]} 17. Be3 {[%emt 0:13:02]} Qe7 {[%emt 0:12:08]} (17... c4 $5 {[%cal Rc4d3]} 18. Bb1 b5 $11) 18. Raf1 {[%emt 0:01:55]} (18. a5 $14) 18... c4 $11 {[%emt 0:09:41]} 19. Bb1 {[%emt 0:00:15]} b5 {[%emt 0:09:01]} 20. exd5 {[%emt 0:05:55]} exd5 {[%emt 0:02:27]} (20... Nxd5 $5 {[%cal Rb5b4]} 21. axb5 axb5 $11) 21. Qe1 {[%emt 0:17:32]} ({White should try} 21. axb5 $14 axb5 22. Nc2) 21... b4 {[%emt 0:07:54]} (21... bxa4 $5 {[%cal Rb8b2]} 22. Qd2 Bh6 $15) 22. Nc2 {[%emt 0:00:20][%cal Rc2b4]} bxc3 {[%emt 0:00:14]} 23. bxc3 {[%emt 0:00:12]} Rb2 {[%emt 0:12:29] aiming for ...Rfb8.} 24. Nd4 {[%emt 0:10:00]} Qd6 $2 {[%emt 0:05:13]} (24... Bxd4 $11 25. Bxd4 Qxe1 26. Rxe1 Re8) 25. f5 {[%emt 0:01:56]} (25. Qc1 $1 $18 {[%cal Rc1b2]} Rfb8 26. Bc2) 25... Ne5 $16 {[%emt 0:00:11]} 26. R3f2 {[%emt 0:00:05]} Rxf2 {[%emt 0:00:58]} 27. Qxf2 {[%emt 0:01:04] And now Qg3 would win.} Qd7 {[%emt 0:07:17]} (27... Nd7 $16) 28. Qh4 {[%emt 0:01:10]} ({Better is} 28. Qg3 $1 $18) 28... Bf6 {[%emt 0:05:49] [#]} (28... Nd3 $16 {was worth a try.}) 29. fxg6 $1 {[%emt 0:04:51][%mdl 512]} Nxg6 {[%emt 0:02:08] [#]} (29... Bxh4 $2 30. gxh7+ Qxh7 31. Bxh7+ Kg7 32. Bh6+ $1 {[%mdl 512]} Kxh6 33. Rxf8 $18) 30. Qh5 {[%emt 0:02:52]} Qe8 {[%emt 0:00:41] [#]} 31. Bf4 {[%emt 0:00:39] 0x0.0022a15d1185dp-1022s more active pieces.} ({Don't play} 31. Qh6 $6 Bg7 32. Qg5 (32. Rxf8+ Nxf8 33. Qf4 Nce6 $14) 32... Rxf1+ 33. Kxf1 Qxa4 $14) ({White should play} 31. Bf2 $1 $16) 31... Ne6 $2 {[%emt 0:01:49][%mdl 8192]} (31... Bxd4+ $11 {and Black is okay.} 32. cxd4 Qf7 33. Bxg6 hxg6) 32. Bxg6 $2 {[%emt 0:02:37]} (32. Nxe6 $18 Qxe6 33. Bxg6 Bd4+ 34. cxd4 hxg6 35. Qd1) 32... hxg6 {[%emt 0:00:19] The position is equal.} 33. Qxd5 {[%emt 0:02:02]} Bxd4+ {[%emt 0:00:02]} 34. cxd4 {[%emt 0:00:09][%cal Of1e1] Strongly threatening Re1!} Qf7 {[%emt 0:00:25]} 35. g3 {[%emt 0:01:54]} g5 {[%emt 0:00:45]} 36. Re1 {[%emt 0:03:18]} Nxf4 {[%emt 0:00:09]} 37. Qxf7+ {[%emt 0:00:07]} Rxf7 {[%emt 0:00:33]} 38. gxf4 {[%emt 0:00:05]} Rxf4 {[%emt 0:00:48]} 39. d5 {[%emt 0:05:55]} Rd4 {[%emt 0:00:43]} 40. Re6 {[%emt 0:02:15]} Rxd5 {[%emt 0:00:47] Threatens to win with ...Rc5.} 41. Rc6 {[%emt 0:50:13] Prevents Rc5.} c3 {[%emt 0:13:45] Blacks defense is rewarded with a draw.  Weighted Error Value: White=0.42/Black=0.49} 1/2-1/2

[Event "4NCL 2021-22"]
[Site "England"]
[Date "2022.04.30"]
[Round "7.67"]
[White "Cyfka, Karina"]
[Black "Smith, Andrew Philip"]
[Result "1-0"]
[ECO "A73"]
[WhiteElo "2403"]
[BlackElo "2226"]
[Annotator "TA"]
[PlyCount "69"]
[EventDate "2021.11.27"]
[EventType "team-tourn"]
[EventCountry "ENG"]
[SourceTitle "playchess.com"]
[Source "ChessBase"]
[SourceQuality "1"]
[TimeControl "40/6000+30:3000+30"]

{[%evp 19,69,35,62,51,52,34,33,26,29,22,58,0,16,0,7,0,0,0,7,0,139,93,175,169,160,177,183,182,164,146,220,202,206,161,231,204,203,225,193,207,267,279,254,254,365,311,631,608,600,593,560,545]} 1. d4 {[%emt 0:00:03]} Nf6 {[%emt 0:10:10]} 2. c4 {[%emt 0:00:17]} c5 {[%emt 0:00:07]} 3. d5 {[%emt 0:00:19]} e6 {[%emt 0:00:07]} 4. Nc3 {[%emt 0:00:38]} exd5 {[%emt 0:00:08]} 5. cxd5 {[%emt 0:00:06]} d6 {[%emt 0:00:05]} 6. Nf3 {[%emt 0:00:56]} g6 {[%emt 0:00:12]} 7. Nd2 {[%emt 0:00:37]} Nbd7 {[%emt 0:02:51]} 8. e4 {[%emt 0:00:31]} Bg7 {[%emt 0:00:09]} 9. Be2 {[%emt 0:00:05]} O-O 10. O-O {[%emt 0:00:25]} Ne8 {[%emt 0:06:51]} 11. a4 {[%emt 0:04:24] A73: Modern Benoni: Classical: Unusual Black 9th moves.} a6 {[%emt 0:02:51]} 12. Qc2 {[%emt 0:06:16]} Rb8 {[%emt 0:01:17] [#]} 13. f4 $146 {[%emt 0:04:13] White is slightly better.} ({Predecessor:} 13. Nc4 Ne5 14. Ne3 f5 15. f4 Ng4 16. Nxg4 fxg4 17. Be3 Nc7 18. a5 b5 19. axb6 Rxb6 20. Rad1 Rb4 21. e5 Bf5 22. Qc1 Nb5 23. Nxb5 axb5 24. Rfe1 g5 25. Bf1 gxf4 26. Bxf4 {1-0 (26) Korobov,A (2511)-Janssen,R (2476) Moscow 2002}) 13... f5 {[%emt 0:06:27]} 14. exf5 {[%emt 0:05:08]} gxf5 {[%emt 0:00:33]} 15. Ra3 {[%emt 0:03:03]} (15. Bd3 $14) 15... Ndf6 {[%emt 0:02:51]} 16. a5 {[%emt 0:15:48]} Nc7 {[%emt 0:10:57]} 17. Bc4 {[%emt 0:18:34]} Bd7 {[%emt 0:12:27]} 18. Rb3 {[%emt 0:04:36] Inhibits Nb5.} Ng4 {[%emt 0:13:58][%cal Og4h2] [#] Hoping for ...Nxh2!} 19. Nf3 {[%emt 0:03:06][%cal Bd2f3,Bf3g5,Bg5e6,Be6c7,Bc7e8][%mdl 32]} Bd4+ {[%emt 0:01:42]} (19... Na8 $11) 20. Kh1 {[%emt 0:02:17]} (20. Nxd4 $142 cxd4 21. Ne2) 20... Ne3 {[%emt 0:01:01]} (20... Bg7 $16 {was necessary.}) 21. Bxe3 $18 {[%emt 0:00:25]} Bxe3 {[%emt 0:00:07]} 22. Ng5 {[%emt 0:06:15]} Bd4 {[%emt 0:14:55]} 23. Rb6 {[%emt 0:13:05]} Rf6 {[%emt 0:09:53]} 24. Qe2 {[%emt 0:05:47]} Bxc3 {[%emt 0:04:10]} (24... Na8 $16 {was worth a try.}) 25. bxc3 {[%emt 0:00:19] Threatens to win with Ne6.} Bb5 {[%emt 0:00:09]} 26. Ne6 {[%emt 0:05:43]} (26. Bxb5 $6 axb5 27. Re1 (27. Qh5 Qe7 $16) 27... Qd7 $16) 26... Qe7 {[%emt 0:05:25] [#]} (26... Nxe6 $142 27. Bxb5 (27. dxe6 Bxc4 28. Qxc4 Qe7 $16) 27... Nxf4 28. Rxf4 axb5) 27. Nxc7 $1 {[%emt 0:01:39]} ({Don't take} 27. Bxb5 $6 Nxb5 28. Qd3 Nc7) 27... Qxe2 {[%emt 0:00:16]} 28. Bxe2 {[%emt 0:00:05]} Bxe2 {[%emt 0:00:08]} 29. Re1 {[%emt 0:00:48]} Bd3 {[%emt 0:02:22]} 30. Ne8 {[%emt 0:03:53]} Rg6 {[%emt 0:01:04]} 31. Nxd6 {[%emt 0:01:26] Black must now prevent c4.} Rd8 {[%emt 0:00:25]} (31... Be4 {might work better.} 32. Nxe4 Rxb6) 32. Re6 {[%emt 0:01:45]} Be4 $2 {[%emt 0:01:09]} (32... c4 33. Rxg6+ (33. Nxb7 Rxd5 34. Rxg6+ hxg6 $18) 33... hxg6) 33. Nxe4 {[%emt 0:02:30] aiming for Nf6+. White is clearly winning.} fxe4 {[%emt 0:01:13]} 34. c4 {[%emt 0:00:32]} Rxe6 {[%emt 0:00:54]} 35. Rxe6 {[%emt 0:00:07] Weighted Error Value: White=0.10 (very precise) /Black=0.46} 1-0

[Event "4NCL 2021-22"]
[Site "England"]
[Date "2022.04.30"]
[Round "7.68"]
[White "Stoica, Savas Marin"]
[Black "Pein, Jonathan"]
[Result "0-1"]
[ECO "B01"]
[WhiteElo "2129"]
[BlackElo "2229"]
[Annotator "TA"]
[PlyCount "108"]
[EventDate "2021.11.27"]
[EventType "team-tourn"]
[EventCountry "ENG"]
[SourceTitle "playchess.com"]
[Source "ChessBase"]
[SourceQuality "1"]
[TimeControl "40/6000+30:3000+30"]

{[%evp 16,108,21,0,14,-12,-6,-16,-16,-18,-16,-23,-10,-18,0,0,1,-21,-19,-62,-20,-28,0,-85,-88,-87,-59,-61,-54,-59,-9,-226,-227,-212,-193,-281,-109,-106,-54,-53,-31,-28,-31,-34,-29,-37,-22,-41,-45,-42,-28,-39,-39,-34,-13,-14,0,-37,-35,-78,-65,-89,-81,-91,-58,-76,-61,-148,-141,-254,-270,-279,-287,-306,-257,-228,0,-268,-296,-394,-371,-392,-394,-486,-450,-503,-512,-503,-503,-500,-472,-449,-428,-493,-476]} 1. e4 {[%emt 0:00:04]} d5 {[%emt 0:00:49]} 2. exd5 {[%emt 0:00:43]} Qxd5 {[%emt 0:00:02]} 3. Nc3 {[%emt 0:00:36]} Qa5 {[%emt 0:00:05]} 4. d4 {[%emt 0:01:02]} c6 {[%emt 0:00:16]} 5. Nf3 {[%emt 0:00:11]} Bf5 {[%emt 0:00:06]} 6. Bc4 {[%emt 0:01:19]} e6 {[%emt 0:00:11]} 7. O-O {[%emt 0:01:12]} Nf6 {[%emt 0:00:04]} 8. Bd2 {[%emt 0:03:13]} Qc7 $1 {[%emt 0:00:08] 8...Qc7 is better than 8...Nbd7.} 9. Re1 {[%emt 0:02:30]} Bd6 {[%emt 0:00:49] B01: Scandinavian Defence.} 10. Ne5 {[%emt 0:00:48]} O-O {[%emt 0:00:45]} 11. Bb3 {[%emt 0:07:04]} Nbd7 {[%emt 0:01:05][%cal Rd7e5] The position is equal.} 12. Qe2 {[%emt 0:00:08]} a6 {[%emt 0:01:40] [#]} 13. Rad1 $146 {[%emt 0:10:09]} ({Predecessor:} 13. h3 c5 14. Nxd7 Qxd7 15. dxc5 Bxc5 16. Bg5 Be7 17. Qf3 Qc7 18. Bf4 Qc6 19. Qxc6 bxc6 {1-0 (37) Reyes Rios,J (2059)-Benjumea Rave,J (1600) Medellin 2015}) 13... b5 {[%emt 0:04:26]} 14. Bf4 {[%emt 0:15:48]} Nb6 {[%emt 0:17:59]} 15. Bg3 {[%emt 0:10:33]} Nbd5 {[%emt 0:09:39]} 16. Nxd5 {[%emt 0:09:08]} cxd5 {[%emt 0:00:14]} 17. a4 {[%emt 0:00:36]} bxa4 {[%emt 0:15:04]} 18. Bxa4 {[%emt 0:00:15]} Rfb8 {[%emt 0:01:53]} 19. Bb3 {[%emt 0:04:40]} (19. c4 $11 dxc4 20. Bc6) 19... a5 $17 {[%emt 0:01:03] And now ...a4 would win.} 20. Ra1 {[%emt 0:02:22]} Rb4 {[%emt 0:08:31]} 21. Ra4 {[%emt 0:03:37]} Rab8 {[%emt 0:02:35] Hoping for ...Rxa4.} 22. Rea1 {[%emt 0:01:20]} h6 {[%emt 0:17:02]} ({Black should play} 22... Rxa4 $15 23. Rxa4 Ne4) 23. Qa6 $2 {[%emt 0:12:48]} (23. Rxa5 $11 {and White stays safe.} Rxd4 24. Ra7) 23... Rxa4 $19 {[%emt 0:07:24]} 24. Bxa4 {[%emt 0:04:13]} Rxb2 {[%emt 0:04:35]} 25. Nd3 {[%emt 0:01:59] [#]} (25. c4 $142 Bxe5 26. dxe5) 25... Bxd3 $2 {[%emt 0:02:45]} (25... Bxg3 $1 $19 {has better winning chances.} 26. hxg3 Bxd3 27. Qxd3 Rb4) 26. Bxd6 $17 {[%emt 0:00:11] [#] Threatens to win with Qa8+.} Bxa6 {[%emt 0:03:41]} ({Better is} 26... Qd8 $1 $17 27. cxd3 Rb6) 27. Bxc7 $15 {[%emt 0:00:07] This bishop pair is nice.} Bb5 {[%emt 0:02:17]} 28. Bxb5 {[%emt 0:00:09]} Rxb5 {[%emt 0:00:02]} 29. Bxa5 {[%emt 0:00:09][%mdl 4096] Endgame KRB-KRN} Rb2 {[%emt 0:01:07]} 30. Rc1 $1 {[%emt 0:00:03]} Ne4 {[%emt 0:00:32]} 31. f3 {[%emt 0:00:21]} Nd6 {[%emt 0:00:13]} 32. Kf2 $1 {[%emt 0:06:21]} Nc4 {[%emt 0:04:23]} 33. Bc3 {[%emt 0:00:06]} Ra2 {[%emt 0:00:44]} 34. Ke2 {[%emt 0:00:15]} Ra3 {[%emt 0:02:37]} 35. Bb4 {[%emt 0:02:08]} Ra2 {[%emt 0:01:44]} 36. Bc3 {[%emt 0:00:04]} g5 {[%emt 0:00:11]} 37. h4 {[%emt 0:06:17]} gxh4 {[%emt 0:00:49]} 38. Be1 {[%emt 0:00:06]} h3 $1 {[%emt 0:00:47]} 39. gxh3 {[%emt 0:00:05]} f6 {[%emt 0:00:50] Black is more active.} 40. Bb4 {[%emt 0:04:11]} Kf7 {[%emt 0:00:19]} 41. f4 {[%emt 0:53:33]} (41. Kd3 $15) 41... Kg6 $17 {[%emt 0:01:53]} 42. Kf3 {[%emt 0:00:00]} (42. Rg1+ $17 Kf5 43. Kd3) 42... Kf5 $19 {[%emt 0:01:42]} 43. Bf8 {[%emt 0:00:00]} h5 {[%emt 0:01:37][%cal Bh6h5,Bh5h4][%mdl 32]} 44. Bb4 {[%emt 0:00:00]} Ra4 {[%emt 0:05:49]} 45. Rb1 {[%emt 0:00:00]} Ra2 {[%emt 0:04:57]} 46. Rc1 {[%emt 0:00:00]} Na3 {[%emt 0:05:44]} 47. Bxa3 {[%emt 0:00:00]} Rxa3+ {[%emt 0:00:02] KR-KR} 48. c3 {[%emt 0:00:00]} h4 {[%emt 0:00:51]} 49. Rc2 {[%emt 0:00:00]} Ra1 {[%emt 0:01:51] Black is clearly winning.} 50. c4 {[%emt 0:00:00]} dxc4 {[%emt 0:02:07]} 51. Rxc4 {[%emt 0:00:00]} Ra3+ {[%emt 0:00:48]} 52. Kg2 {[%emt 0:00:00]} Rg3+ {[%emt 0:02:03]} 53. Kh2 {[%emt 0:00:00]} Rf3 {[%emt 0:01:33]} 54. Rc5+ {[%emt 0:00:00]} Ke4 {[%emt 0:01:36] Weighted Error Value: White=0.29 (precise) /Black=0.20 (precise)} 0-1

[Event "4NCL 2021-22"]
[Site "England"]
[Date "2022.04.30"]
[Round "7.69"]
[White "Gallana, Marco"]
[Black "Josse, Mark"]
[Result "1/2-1/2"]
[ECO "D30"]
[WhiteElo "2277"]
[BlackElo "2221"]
[Annotator "TA"]
[PlyCount "166"]
[EventDate "2021.11.27"]
[EventType "team-tourn"]
[EventCountry "ENG"]
[SourceTitle "playchess.com"]
[Source "ChessBase"]
[SourceQuality "1"]
[TimeControl "40/6000+30:3000+30"]

{[%evp 9,166,21,25,26,81,86,79,89,95,97,100,114,102,76,87,77,92,78,79,57,60,64,164,166,216,127,156,100,107,58,175,108,110,106,154,151,139,175,148,90,115,115,135,150,506,493,468,357,342,183,207,199,190,171,152,0,191,196,174,114,110,95,96,100,136,62,65,7,8,0,25,24,328,326,330,154,153,144,147,85,104,80,80,80,81,30,30,30,30,30,30,30,30,30,30,30,34,30,34,34,34,34,34,30,30,30,30,30,30,30,30,30,30,30,30,30,30,30,30,30,30,30,30,30,30,30,119,0,30,30,30,0,0,0,0,0,0,0,0,0,0,0,0,0,0,0,0,0,0,0,0,0,0,0,0,0,0,0,0]} 1. d4 {[%emt 0:00:03]} d5 {[%emt 0:00:10]} 2. c4 {[%emt 0:00:07]} e6 {[%emt 0:00:13]} 3. Nf3 {[%emt 0:00:23]} a6 {[%emt 0:00:09]} 4. g3 {[%emt 0:10:26]} dxc4 {[%emt 0:03:56]} 5. Bg2 {[%emt 0:00:11]} c5 {[%emt 0:02:13]} 6. O-O {[%emt 0:02:12] D30: Queen's Gambit Declined: Systems without Nc3.} Nc6 {[%emt 0:03:13]} (6... cxd4 $1 $11 {remains equal.} 7. Nxd4 Nf6) 7. dxc5 $16 {[%emt 0:06:58]} Qxd1 {[%emt 0:04:53]} 8. Rxd1 {[%emt 0:00:14] White is better.} Bxc5 {[%emt 0:00:52]} 9. Nbd2 {[%emt 0:03:15] [#]} e5 $146 {[%emt 0:29:42]} ({Predecessor:} 9... Nf6 10. Nxc4 Ra7 11. Ne1 a5 12. Nd3 Be7 13. Be3 Ra6 14. Nc5 Ra8 15. Nb6 Rb8 16. Na6 bxa6 17. Bxc6+ Kf8 18. Rac1 Ng4 19. Bc5 {1-0 (19) Burmakin,V (2552)-Hillarp Persson,T (2533) Salou 2005}) 10. Nxc4 {[%emt 0:07:21]} f6 {[%emt 0:00:54]} 11. Nfd2 {[%emt 0:09:37]} Be6 {[%emt 0:06:34] [#]} 12. Ne4 $1 {[%emt 0:17:26]} Bxc4 {[%emt 0:02:04]} 13. Nxc5 {[%emt 0:00:09]} Bxe2 {[%emt 0:14:12]} 14. Rd6 {[%emt 0:20:47]} Nge7 {[%emt 0:16:22]} 15. Be3 {[%emt 0:03:05]} (15. Nxb7 Nd4 $11) 15... O-O {[%emt 0:02:46]} (15... Nf5 $14 16. Rd7 (16. Bxc6+ bxc6 17. Rxc6 Kf7 $15) 16... Nd8) 16. Nxb7 $18 {[%emt 0:02:18]} Rfc8 {[%emt 0:10:19]} (16... Rac8 $142 17. Rd2 Bh5) 17. b3 {[%emt 0:04:22]} (17. Rd2 $1 $18 {[%cal Rd2e2]} Rab8 18. Nc5 (18. Rxe2 Rxb7 19. Rc1 Rbb8 $16)) 17... Rab8 {[%emt 0:02:06] [#]} 18. Re1 $1 {[%emt 0:04:12]} Bg4 {[%emt 0:01:33] [#]} (18... Bh5 19. Bh3) 19. Nc5 {[%emt 0:00:17] 0x0.001d5fc54737dp-1022s more active pieces.} (19. h3 $1 $16 {[%cal Rh3g4]}) 19... a5 {[%emt 0:00:38]} (19... Nb4 $14) 20. Nd7 {[%emt 0:01:46]} (20. h3 $1 $18 {[%cal Rh3g4]} Bf5 21. g4) 20... Bxd7 $16 {[%emt 0:05:42]} 21. Rxd7 {[%emt 0:00:08]} Rd8 {[%emt 0:00:13]} (21... Nf5 $142) 22. Red1 {[%emt 0:01:10] Hoping for Bc5.} Rxd7 {[%emt 0:00:43]} 23. Rxd7 {[%emt 0:00:09]} Rd8 {[%emt 0:00:16]} 24. Rc7 {[%emt 0:09:34]} (24. Rxd8+ $142 Nxd8 25. f4) 24... Rd1+ {[%emt 0:00:30]} 25. Bf1 {[%emt 0:00:06]} Kf7 {[%emt 0:00:56]} 26. Kg2 {[%emt 0:00:22]} Ke6 $2 {[%emt 0:00:39]} (26... Nd4 $16 27. Bc4+ Kf8) 27. Bc5 $1 $18 {[%emt 0:01:20]} f5 {[%emt 0:00:12]} 28. Bc4+ {[%emt 0:00:58]} Kf6 {[%emt 0:00:07]} 29. a4 {[%emt 0:02:09]} (29. h4 $142) 29... g5 {[%emt 0:00:25]} 30. Bb5 {[%emt 0:02:07] A strong pair of Bishops.} Rd5 {[%emt 0:01:57]} 31. Bb6 {[%emt 0:00:38]} (31. Bxc6 $2 Rxc5 32. Rxe7 Kxe7 $19) 31... Rd6 {[%emt 0:00:42]} 32. Bc5 {[%emt 0:00:05]} Rd5 {[%emt 0:00:05]} 33. Ba3 {[%emt 0:00:10]} (33. Bxc6 $2 Rxc5 34. Rxe7 Kxe7 $19) 33... Nb4 {[%emt 0:00:08]} 34. Bxb4 {[%emt 0:00:10]} (34. Bc4 $18 {Bxb4 is the strong threat.} Rd2 35. Bc1) 34... axb4 {[%emt 0:00:07][%mdl 4096] Endgame KRB-KRN} 35. Bc4 {[%emt 0:00:27]} Rd2 {[%emt 0:00:21]} 36. Rb7 {[%emt 0:01:08]} g4 {[%emt 0:00:52]} 37. Rxb4 {[%emt 0:01:31]} (37. a5 $16) 37... f4 $1 $14 {[%emt 0:00:16] aiming for ...f3+.} 38. gxf4 {[%emt 0:00:52]} ({White should play} 38. Rb6+ $14 Kf5 39. Be6+ Kg5 40. h4+ gxh3+ 41. Bxh3) 38... exf4 $11 {[%emt 0:00:02]} 39. Kf1 {[%emt 0:01:00] And now a5 would win.} f3 {[%emt 0:02:10][%cal Rd2d1]} 40. Ke1 {[%emt 0:00:04] Against Rd1+} Rb2 $2 {[%emt 0:00:15][%mdl 8192]} (40... Ra2 $11 {and Black is okay.}) 41. a5 $18 {[%emt 0:03:34]} Ke5 {[%emt 0:03:49]} 42. Bd3 {[%emt 0:13:47] Prevents Rb1+.} (42. a6 $1 $18 {[%cal Ra6a7] and the rest is easy. Threatens to win with a7.} Ra2 43. Bb5) 42... Nc6 $16 {[%emt 0:06:56]} 43. Re4+ {[%emt 0:12:31]} ({Don't take} 43. Rxg4 Nxa5 44. Re4+ (44. Bxh7 Re2+ 45. Kf1 Nxb3 $11) 44... Kd5 $16) 43... Kd5 {[%emt 0:00:44] [#]} 44. Rxg4 {[%emt 0:08:36]} (44. Ra4 $142 $1) 44... Nxa5 {[%emt 0:08:21]} 45. Be4+ {[%emt 0:01:01]} Ke5 {[%emt 0:02:26]} 46. Bxf3 {[%emt 0:04:03]} Nxb3 {[%emt 0:07:20]} 47. Kf1 {[%emt 0:06:15]} (47. Re4+ $16 Kf6 48. Rb4) 47... Nd2+ $11 {[%emt 0:15:47]} 48. Kg2 {[%emt 0:00:06]} Nxf3 {[%emt 0:00:32]} 49. Kxf3 {[%emt 0:00:06] KR-KR} Rb3+ {[%emt 0:00:11]} 50. Kg2 {[%emt 0:00:05]} Kf5 {[%emt 0:00:15]} 51. Rg7 {[%emt 0:00:20]} h6 {[%emt 0:00:21]} 52. f3 {[%emt 0:00:06]} Ra3 {[%emt 0:00:27]} 53. Rg4 {[%emt 0:00:31]} Rb3 {[%emt 0:00:28]} 54. Kg3 {[%emt 0:00:18]} Rb1 {[%emt 0:02:03]} 55. Rf4+ {[%emt 0:01:38]} Kg5 {[%emt 0:00:11]} 56. h4+ {[%emt 0:01:14]} Kg6 {[%emt 0:01:33]} 57. Ra4 {[%emt 0:00:06]} Rh1 {[%emt 0:03:25]} 58. Ra6+ {[%emt 0:00:09]} Kh5 {[%emt 0:02:03][%cal Oh1h3]} 59. Ra5+ {[%emt 0:00:05]} Kg6 {[%emt 0:00:06]} 60. Kg4 {[%emt 0:00:05]} Rg1+ {[%emt 0:00:22]} 61. Kf4 {[%emt 0:00:06]} Rh1 {[%emt 0:00:58]} 62. Kg3 {[%emt 0:02:02]} Rg1+ {[%emt 0:00:12]} 63. Kh2 {[%emt 0:00:44]} Rb1 {[%emt 0:00:35]} 64. h5+ {[%emt 0:00:24]} Kg7 {[%emt 0:00:16]} 65. Kg3 {[%emt 0:00:12]} Rh1 {[%emt 0:01:03]} 66. Rd5 {[%emt 0:02:29]} Rg1+ {[%emt 0:00:40]} 67. Kf4 {[%emt 0:00:13]} Rh1 {[%emt 0:00:11] [#]} (67... Rf1 $11) 68. Rd7+ {[%emt 0:01:10]} ({White should try} 68. Kg4 $1 $16) 68... Kf6 {[%emt 0:00:20]} 69. Rd6+ {[%emt 0:01:28]} Kg7 $1 {[%emt 0:00:15]} 70. Rg6+ {[%emt 0:00:45]} Kh7 $1 {[%emt 0:00:07] The position is equal.} 71. Kg4 {[%emt 0:00:48]} Rg1+ {[%emt 0:00:20]} 72. Kf5 {[%emt 0:00:04]} Rh1 {[%emt 0:02:14]} 73. Kf6 {[%emt 0:00:43] Black must now prevent Rg7+.} (73. Rd6 $5 {[%cal Rd6d7]}) 73... Rxh5 {[%emt 0:00:44]} 74. f4 {[%emt 0:00:19]} Ra5 {[%emt 0:00:19]} 75. Rg7+ {[%emt 0:00:07]} Kh8 {[%emt 0:00:08]} 76. Re7 {[%emt 0:00:18]} Ra6+ {[%emt 0:00:31]} 77. Kf7 {[%emt 0:00:06]} Ra5 {[%emt 0:01:04]} 78. Kf6 {[%emt 0:00:54]} Ra6+ {[%emt 0:00:18]} 79. Re6 {[%emt 0:00:31]} Rxe6+ {[%emt 0:00:48]} 80. Kxe6 {[%emt 0:00:08] White wants to mate with f5.} Kg7 {[%emt 0:00:20]} 81. Ke7 {[%emt 0:01:39] Threatening mate with f5.} Kg6 {[%emt 0:00:24] ( -> ...Kf5)} 82. Ke6 {[%emt 0:00:05] f5+ would kill now.} Kg7 {[%emt 0:00:17]} (82... h5 {leads to mate.} 83. f5+ Kg7 84. Ke7 (84. f6+ Kf8 $11) 84... Kh7 85. f6 Kg6 86. f7 Kf5 87. f8=Q+ Ke5 88. Qh8+ Kf5 89. Qxh5+ Ke4 90. Qe2+ Kd5 91. Qe3) 83. Ke7 {[%emt 0:00:04] Intending f5 and mate.} Kg6 {[%emt 0:00:09] White really could win this.  Weighted Error Value: White=0.24 (precise) /Black=0.34} 1/2-1/2